bitfinex-derivatives/quotes_ETHF0:USTF0_20250224
["timestamp","ask_amount","ask_price","bid_price","bid_amount"]
[1740372615340,0.73741,2712.2,2711.9,0.00552608]
[1740372615540,3.94553303,2712.3,2711.9,0.00552608]
[1740372615843,0.73744,2712.0,2711.9,0.00552608]
[1740372616038,3.94553303,2712.3,2711.9,0.00552608]
[1740372616442,0.73742,2712.1,2711.9,0.00552608]
[1740372616646,3.94553303,2712.3,2711.9,0.00552608]
[1740372616942,2.987,2712.5,2712.0,3.2078]
[1740372617141,3.5801,2712.5,2712.0,3.94522]
[1740372617447,3.5801,2712.5,2712.1,0.7374]
[1740372617646,3.5801,2712.5,2712.2,0.5707]
[1740372617948,3.5801,2712.5,2712.2,1.1269]
[1740372618539,3.5801,2712.5,2711.9,0.00552608]
[1740372618743,0.73741,2712.2,2711.9,0.00552608]
[1740372619047,3.94521,2712.2,2711.9,0.00552608]
[1740372619247,0.73735,2712.4,2711.9,0.00552608]
[1740372619444,1.47575565,2712.4,2711.9,0.00552608]
[1740372619747,0.73735,2712.4,2711.9,0.00552608]
[1740372620050,6.4241,2712.5,2711.9,0.00552608]
[1740372620349,0.73735,2712.4,2711.9,0.00552608]
[1740372620549,0.73738,2712.3,2711.9,0.00552608]
[1740372621049,3.94518,2712.3,2711.9,0.00552608]
[1740372621643,0.73739,2712.2,2711.9,0.00552608]
[1740372621944,3.94524,2712.0,2711.9,0.00552608]
[1740372622144,6.78924,2712.0,2711.9,0.00552608]
[1740372623847,7.52753703,2712.0,2711.9,0.00552608]
[1740372624547,0.73757,2711.6,2711.4,0.5882]
[1740372625147,1.33549703,2711.9,2711.4,0.5882]
[1740372625449,0.73754,2711.7,2711.4,0.5882]
[1740372625648,1.34102311,2711.9,2711.4,0.59372608]
[1740372625952,0.73755,2711.6,2711.4,0.59372608]
[1740372626147,0.73754,2711.7,2711.4,0.59372608]
[1740372629153,0.60272608,2711.9,2711.4,0.59372608]
[1740372629348,0.73754,2711.7,2711.4,0.59372608]
[1740372629851,0.60272608,2711.9,2711.4,0.59372608]
[1740372630052,0.73753,2711.7,2711.4,0.59372608]
[1740372631052,0.73757,2711.6,2711.4,0.59372608]
[1740372631251,0.73754,2711.7,2711.4,0.59372608]
[1740372632351,0.60272608,2711.9,2711.4,0.00552608]
[1740372632547,0.73758,2711.5,2711.4,0.00552608]
[1740372633056,0.73767,2711.2,2710.8,3.7507]
[1740372633359,2.842,2711.5,2710.8,3.7507]
[1740372633552,3.2078,2711.3,2710.8,3.7507]
[1740372633857,3.2078,2711.3,2710.8,0.5429]
[1740372634049,3.2078,2711.3,2710.8,0.54842608]
[1740372634249,3.94545,2711.3,2710.8,0.54842608]
[1740372634449,0.73766,2711.2,2710.8,0.54842608]
[1740372634652,3.94544,2711.3,2710.8,0.54842608]
[1740372634851,3.2078,2711.3,2710.8,0.54842608]
[1740372635053,3.2078,2711.3,2711.2,0.73766]
[1740372635257,2.842,2711.4,2710.8,3.75622608]
[1740372635559,3.57961,2711.4,2710.8,4.49398608]
[1740372635755,0.73764,2711.3,2710.8,3.75622608]
[1740372635959,2.842,2711.4,2710.9,0.73774]
[1740372636258,2.842,2711.4,2710.8,3.75622608]
[1740372636558,2.842,2711.4,2710.9,0.73772]
[1740372636956,2.842,2711.4,2710.8,3.75622608]
[1740372637356,1.30315,2711.3,2710.8,3.75622608]
[1740372637553,0.73766,2711.2,2710.8,3.75622608]
[1740372637753,0.7377,2711.1,2710.8,0.54842608]
[1740372637952,3.94548,2711.2,2710.8,0.54842608]
[1740372638153,0.7377,2711.1,2710.8,0.54842608]
[1740372638360,3.2078,2711.2,2710.8,0.54842608]
[1740372638657,3.94546,2711.2,2710.8,0.54842608]
[1740372639859,0.73766,2711.2,2710.8,0.54842608]
[1740372640247,3.2078,2711.1,2710.8,0.54842608]
[1740372640453,0.73773,2711.0,2710.8,0.00552608]
[1740372640762,1.29573,2711.0,2710.8,0.00552608]
[1740372641152,0.558,2711.0,2710.8,0.00552608]
[1740372641653,3.399,2711.0,2710.8,0.00552608]
[1740372642456,2.841,2711.2,2710.9,3.2078]
[1740372642650,2.841,2711.2,2711.0,0.5589]
[1740372643352,6.1948,2711.8,2711.0,0.5589]
[1740372643558,6.7853,2711.8,2711.2,0.73765]
[1740372643760,6.0478,2711.8,2711.1,1.83018]
[1740372643961,0.73753,2711.7,2711.1,1.83018]
[1740372644254,6.0478,2711.8,2711.1,1.83018]
[1740372644255,6.78531,2711.8,2711.1,1.83018]
[1740372644856,1.1378,2712.1,2711.8,0.7375]
[1740372645056,1.175,2712.6,2711.6,3.2078]
[1740372645252,4.3828,2712.6,2712.0,0.73742]
[1740372645457,1.9123,2712.6,2712.1,0.5639]
[1740372645662,1.175,2712.6,2712.1,0.5639]
[1740372646062,1.175,2712.6,2712.2,0.5856]
[1740372646250,1.175,2712.6,2712.2,3.7934]
[1740372646251,1.18052608,2712.6,2712.2,3.7934]
[1740372646451,1.18052608,2712.6,2712.2,4.53077]
[1740372647052,1.18052608,2712.6,2712.2,3.7934]
[1740372647364,0.59272608,2712.6,2712.2,4.53078]
[1740372647565,0.00552608,2712.6,2712.2,4.53078]
[1740372648256,0.00552608,2712.6,2712.2,3.7934]
[1740372648466,3.4262,2713.4,2712.5,3.2078]
[1740372648665,3.94345301,2713.5,2713.0,0.73716]
[1740372648962,3.94345301,2713.5,2713.2,0.7371]
[1740372649162,3.94345301,2713.5,2713.2,0.29762979]
[1740372649369,3.94345301,2713.5,2713.3,0.73707]
[1740372649565,3.2078,2713.5,2713.2,0.7371]
[1740372649760,3.2078,2713.5,2713.3,0.73708]
[1740372650062,0.00552608,2713.6,2713.1,3.21332608]
[1740372650272,0.00552608,2713.6,2713.5,0.73704]
[1740372650766,0.00552608,2713.6,2713.4,0.73705]
[1740372651070,0.00552608,2713.6,2713.3,0.73708]
[1740372651263,0.00552608,2713.6,2713.1,3.21332608]
[1740372651468,0.00552608,2713.6,2713.1,0.00552608]
[1740372651469,0.74254608,2713.6,2713.1,0.00552608]
[1740372651666,0.7371,2713.3,2713.1,0.00552608]
[1740372651972,3.2078,2713.5,2713.1,0.00552608]
[1740372652568,0.73706,2713.4,2713.1,0.00552608]
[1740372653166,3.7937,2713.5,2713.1,0.00552608]
[1740372653662,0.73708,2713.4,2713.1,0.00552608]
[1740372654062,3.7937,2713.5,2713.1,0.00552608]
[1740372654465,0.7371,2713.3,2713.1,0.00552608]
[1740372654670,3.7937,2713.5,2713.1,0.00552608]
[1740372655569,3.2078,2713.5,2713.1,0.57402608]
[1740372656269,3.2078,2713.5,2713.2,0.7371]
[1740372656467,3.2078,2713.5,2713.3,0.5831]
[1740372656970,0.00552608,2713.6,2713.3,0.5831]
[1740372656971,0.00552608,2713.6,2713.3,1.32018]
[1740372657164,0.00552608,2713.6,2713.5,0.73704]
[1740372657363,0.00552608,2713.6,2713.3,3.7909]
[1740372657669,0.00552608,2713.6,2713.3,4.52797]
[1740372657859,0.00552608,2713.6,2713.4,0.73705]
[1740372658060,0.00552608,2713.6,2713.5,0.73704]
[1740372658269,0.00552608,2713.6,2713.4,0.73705]
[1740372658669,0.00552608,2713.6,2713.3,4.52798]
[1740372659060,0.00552608,2713.6,2713.3,3.7909]
[1740372659267,3.2078,2713.5,2713.1,0.00552608]
[1740372659863,0.73712,2713.2,2713.1,0.00552608]
[1740372660069,3.7714,2713.5,2713.1,0.00552608]
[1740372660369,0.73712,2713.2,2713.1,0.00552608]
[1740372660670,3.94492,2713.2,2713.1,0.00552608]
[1740372660971,0.73716,2713.1,2712.4,0.73732]
[1740372661166,3.2078,2712.9,2712.5,1.107]
[1740372661370,3.2078,2712.9,2712.0,6.1618]
[1740372661371,3.2078,2712.9,2712.1,0.29934895]
[1740372661577,3.2078,2712.9,2712.4,3.2078]
[1740372662067,3.2078,2712.9,2712.4,3.21332608]
[1740372662264,3.2078,2712.9,2712.4,3.95064608]
[1740372662467,3.2078,2712.9,2712.4,3.21332608]
[1740372662669,0.73731,2712.5,2712.4,0.00552608]
[1740372664175,3.94509,2712.6,2712.4,0.00552608]
[1740372664571,3.2078,2712.6,2712.4,0.00552608]
[1740372664765,0.73731,2712.5,2712.4,0.00552608]
[1740372665476,6.0,2712.5,2711.3,3.2078]
[1740372665665,3.2078,2711.9,2711.3,3.50192214]
[1740372665871,3.94527,2711.9,2711.3,3.50192214]
[1740372666073,3.2078,2711.9,2711.4,0.73759]
[1740372666367,3.2078,2711.9,2711.3,0.29412214]
[1740372666368,0.73751,2711.8,2711.3,0.29412214]
[1740372666569,3.21332608,2711.9,2711.4,0.00552608]
[1740372666770,0.73754,2711.7,2711.4,0.00552608]
[1740372667074,4.37112608,2711.9,2711.4,0.00552608]
[1740372667271,0.73754,2711.7,2711.4,0.00552608]
[1740372667471,0.73758,2711.5,2711.4,0.00552608]
[1740372668172,3.2078,2711.6,2711.4,0.00552608]
[1740372668375,6.0418,2711.6,2711.4,0.00552608]
[1740372668576,0.73758,2711.5,2711.4,0.00552608]
[1740372669080,6.0418,2711.6,2711.4,0.00552608]
[1740372669876,0.73758,2711.5,2711.4,0.00552608]
[1740372670576,3.2078,2711.6,2711.4,0.00552608]
[1740372671376,3.57700608,2711.9,2711.4,0.00552608]
[1740372671571,3.2078,2711.7,2711.4,0.00552608]
[1740372673272,0.73756,2711.6,2711.4,0.00552608]
[1740372673477,3.2078,2711.7,2711.4,0.00552608]
[1740372673678,0.73755,2711.6,2711.4,0.00552608]
[1740372674081,0.73757,2711.6,2711.4,0.00552608]
[1740372674580,3.2078,2711.7,2711.4,0.00552608]
[1740372675477,0.73758,2711.5,2711.4,0.00552608]
[1740372675873,3.2078,2711.7,2711.4,0.00552608]
[1740372676073,3.94533,2711.7,2711.4,0.00552608]
[1740372676280,3.2078,2711.7,2711.4,0.00552608]
[1740372676479,0.73755,2711.6,2711.4,0.00552608]
[1740372676675,0.73758,2711.5,2711.4,0.00552608]
[1740372677477,0.5509,2711.6,2711.4,0.00552608]
[1740372677783,1.28846,2711.6,2711.4,0.00552608]
[1740372677978,0.73758,2711.5,2711.4,0.00552608]
[1740372678280,1.28845,2711.6,2711.4,0.00552608]
[1740372678478,1.28846,2711.6,2711.4,0.00552608]
[1740372679278,0.5509,2711.6,2711.4,0.00552608]
[1740372679478,1.28845,2711.6,2711.4,0.00552608]
[1740372679681,0.5509,2711.6,2711.4,0.00552608]
[1740372679979,0.5509,2711.6,2711.4,0.74312608]
[1740372680183,0.5509,2711.6,2711.4,0.00552608]
[1740372680985,3.2078,2711.7,2711.4,0.00552608]
[1740372681683,3.94533,2711.7,2711.4,0.00552608]
[1740372681885,3.2078,2711.7,2711.4,0.00552608]
[1740372682077,3.94534,2711.7,2711.4,0.00552608]
[1740372683688,3.2078,2711.7,2711.4,0.00552608]
[1740372683890,3.94534,2711.7,2711.4,0.00552608]
[1740372684191,0.73757,2711.6,2711.4,0.00552608]
[1740372684386,0.73758,2711.5,2711.4,0.00552608]
[1740372684588,0.73756,2711.6,2711.4,0.00552608]
[1740372684785,3.94534,2711.7,2711.4,0.00552608]
[1740372684985,0.73755,2711.6,2711.4,0.00552608]
[1740372685481,0.73758,2711.5,2711.4,0.00552608]
[1740372686995,3.2078,2711.7,2711.4,0.00552608]
[1740372687385,0.73756,2711.6,2711.4,0.00552608]
[1740372687585,0.73758,2711.5,2711.4,0.00552608]
[1740372687989,3.2078,2711.7,2711.4,0.00552608]
[1740372688285,3.94534,2711.7,2711.4,0.00552608]
[1740372689193,0.56022608,2711.9,2711.4,0.00552608]
[1740372689591,0.73751,2711.8,2711.4,0.00552608]
[1740372690090,0.56022608,2711.9,2711.4,0.00552608]
[1740372690291,3.2078,2711.7,2711.4,0.00552608]
[1740372690894,3.94534,2711.7,2711.4,0.00552608]
[1740372691698,3.2078,2711.7,2711.4,0.00552608]
[1740372692093,0.73758,2711.5,2711.4,0.00552608]
[1740372692399,3.2078,2711.7,2711.4,0.00552608]
[1740372692796,0.73758,2711.5,2711.4,0.00552608]
[1740372693200,0.73757,2711.6,2711.4,0.00552608]
[1740372693600,3.2078,2711.7,2711.4,0.00552608]
[1740372696103,3.94533,2711.7,2711.4,0.00552608]
[1740372697204,3.2078,2711.7,2711.4,0.00552608]
[1740372697903,3.94535,2711.7,2711.4,0.00552608]
[1740372698797,0.73758,2711.5,2711.4,0.00552608]
[1740372699195,0.73758,2711.5,2710.7,0.573]
[1740372699196,0.73776,2710.9,2710.7,0.573]
[1740372699406,0.73779,2710.8,2710.5,0.5654]
[1740372700106,3.94556,2710.9,2710.5,0.5654]
[1740372700505,3.2078,2710.9,2710.5,0.5654]
[1740372700705,3.94555,2710.9,2710.5,0.5654]
[1740372701008,3.2078,2710.9,2710.5,0.5654]
[1740372701203,0.599,2711.2,2710.6,3.2078]
[1740372701409,3.2078,2711.0,2710.6,0.5618]
[1740372701706,1.33668,2711.2,2710.6,3.7696]
[1740372701895,0.599,2711.2,2710.6,3.7696]
[1740372702103,2.987,2711.3,2710.9,3.2078]
[1740372702303,2.987,2711.3,2711.0,0.5729]
[1740372702905,3.2078,2711.1,2710.6,3.7696]
[1740372703099,3.2078,2711.1,2710.6,4.3425]
[1740372703305,1.1545,2711.2,2710.7,0.7378]
[1740372703498,1.1545,2711.2,2710.9,3.2078]
[1740372703904,0.73769,2711.1,2710.6,1.1347]
[1740372704408,4.3623,2711.2,2710.6,1.1347]
[1740372704804,0.73774,2711.0,2710.6,1.1347]
[1740372705703,4.3623,2711.2,2710.6,1.1347]
[1740372705907,0.73771,2711.1,2710.6,1.1347]
[1740372706107,4.3623,2711.2,2710.6,1.1347]
[1740372706307,0.73785,2710.5,2710.4,0.0031584]
[1740372707307,1.90195,2710.6,2710.4,0.0031584]
[1740372707609,0.73785,2710.5,2710.4,0.0031584]
[1740372708808,1.31635,2710.5,2710.4,0.0031584]
[1740372709911,0.5785,2710.5,2709.8,0.5714]
[1740372710108,0.73795,2710.2,2709.8,0.5714]
[1740372710411,6.0368,2710.3,2709.8,0.5714]
[1740372710609,3.2078,2710.0,2709.6,0.5659]
[1740372710808,0.5743,2709.9,2709.6,0.5659]
[1740372711014,3.2078,2709.7,2709.6,0.5659]
[1740372712219,3.2078,2709.7,2709.3,0.5991]
[1740372713610,0.73811,2709.6,2709.3,0.5991]
[1740372713810,0.73814,2709.5,2709.3,0.5991]
[1740372714013,0.73811,2709.6,2709.3,0.5991]
[1740372714210,6.0358,2709.7,2709.3,0.5991]
[1740372714613,3.2078,2709.4,2708.3,3.2078]
[1740372714812,3.2078,2709.1,2708.3,3.2078]
[1740372715012,6.0358,2709.1,2708.4,1.7525]
[1740372715207,3.94613,2708.8,2708.0,3.94632]
[1740372715411,0.73834,2708.7,2708.1,0.5727]
[1740372715617,0.74390638,2708.7,2708.1,0.5727]
[1740372715816,0.5637,2708.6,2708.1,0.5727]
[1740372716011,3.2078,2708.5,2708.1,0.5727]
[1740372716214,0.00553638,2708.7,2708.5,0.73838]
[1740372716416,0.00553638,2708.7,2708.3,3.2078]
[1740372716715,0.00553638,2708.7,2708.6,0.73837]
[1740372716909,0.00553638,2708.7,2708.6,3.94617]
[1740372717115,3.2078,2709.5,2709.0,0.73825]
[1740372717515,3.2078,2709.5,2708.7,41.3631]
[1740372717722,3.2078,2709.5,2708.7,0.5631]
[1740372717918,3.2078,2709.2,2708.7,0.5631]
[1740372718120,0.00553638,2709.4,2708.8,0.00553638]
[1740372718420,0.00553638,2709.4,2708.8,0.74383638]
[1740372719113,0.00553638,2709.4,2708.8,0.00553638]
[1740372719315,3.2078,2709.0,2707.9,3.2078]
[1740372719521,1.85096638,2709.4,2707.9,3.2078]
[1740372719522,0.73841,2708.5,2707.9,3.2078]
[1740372719716,3.2078,2708.4,2707.5,0.29031549]
[1740372719908,0.73859,2707.8,2707.0,4.50969]
[1740372720108,6.0358,2708.1,2707.3,3.2078]
[1740372720315,6.0358,2708.1,2707.4,1.1572]
[1740372720516,0.00553638,2708.0,2707.5,0.73865]
[1740372720819,0.00553638,2708.0,2707.4,1.89589]
[1740372721012,0.00553638,2708.0,2707.5,0.73866]
[1740372721218,0.73864,2707.7,2707.0,0.86114587]
[1740372721421,3.2078,2707.8,2707.2,3.2078]
[1740372722120,0.00553638,2708.0,2707.9,0.73856]
[1740372722515,0.00553638,2708.0,2707.8,3.94638]
[1740372722721,0.00553638,2708.0,2707.8,3.2078]
[1740372722917,0.00553638,2708.0,2707.9,0.73856]
[1740372723124,6.04133638,2708.0,2707.0,0.29804587]
[1740372723316,3.2078,2707.6,2706.9,1.1426]
[1740372723519,3.2078,2707.6,2706.9,1.88141]
[1740372723819,0.73871,2707.4,2706.9,1.1426]
[1740372724121,3.2078,2707.3,2706.9,1.1426]
[1740372724620,2.828,2707.5,2707.0,0.73879]
[1740372724822,2.828,2707.5,2706.9,1.1426]
[1740372725214,3.56667,2707.5,2706.9,4.3504]
[1740372725419,2.828,2707.5,2706.9,1.1426]
[1740372725718,3.2078,2707.3,2706.9,1.88142]
[1740372726318,3.2078,2707.3,2706.9,1.1426]
[1740372726626,3.2078,2707.3,2706.9,4.3504]
[1740372726823,3.2078,2707.3,2707.0,0.73879]
[1740372727028,3.2078,2707.3,2707.2,0.73875]
[1740372727225,3.2078,2707.3,2707.1,0.73877]
[1740372727422,3.2078,2707.3,2706.9,4.3504]
[1740372727623,1.1276,2707.9,2707.2,3.2078]
[1740372727624,4.11966,2707.9,2707.2,3.2078]
[1740372727823,1.29166,2707.9,2707.3,1.34311]
[1740372728024,4.11966,2707.9,2707.4,0.7387]
[1740372728320,3.21333638,2708.0,2707.5,3.8048]
[1740372728517,3.21333638,2708.0,2707.6,0.5568]
[1740372728518,0.00553638,2708.0,2707.6,0.5568]
[1740372728719,0.00553638,2708.0,2707.9,0.73856]
[1740372728925,3.2078,2708.8,2708.5,0.73838]
[1740372729129,6.77413,2708.8,2708.3,3.2078]
[1740372729425,6.0358,2708.8,2708.3,3.2078]
[1740372729626,6.0358,2708.8,2708.3,3.8048]
[1740372729827,6.0358,2708.8,2707.9,0.6044]
[1740372729828,3.2078,2708.5,2707.9,0.6044]
[1740372730126,2.828,2708.8,2708.3,0.00553638]
[1740372730127,0.73842,2708.4,2708.3,0.00553638]
[1740372730324,3.2078,2708.4,2707.6,0.5568]
[1740372730523,3.2078,2708.1,2707.3,0.73871]
[1740372730724,3.2078,2708.1,2707.5,0.73865]
[1740372730927,3.2078,2708.1,2707.3,3.8151]
[1740372731125,3.2078,2708.1,2707.6,0.73864]
[1740372731327,3.2078,2708.1,2707.3,3.8151]
[1740372731527,3.2078,2708.1,2707.6,0.73863]
[1740372732027,3.2078,2708.1,2706.9,1.84705]
[1740372732028,3.2078,2707.7,2705.6,3.2078]
[1740372732226,3.2078,2706.4,2705.8,1.87361]
[1740372732528,3.94677,2706.4,2705.8,1.1345]
[1740372732830,3.94678,2706.4,2705.8,1.1345]
[1740372733022,3.2078,2706.4,2705.8,1.1345]
[1740372733425,3.2078,2706.4,2705.8,1.87363]
[1740372733625,3.2078,2706.4,2705.8,1.1345]
[1740372734125,3.2078,2706.1,2705.8,1.1345]
[1740372735031,3.2078,2706.1,2705.8,0.5605]
[1740372735433,3.2078,2706.1,2705.3,0.5934]
[1740372735627,3.2078,2705.5,2705.3,0.5934]
[1740372737333,3.2078,2705.7,2705.3,0.5934]
[1740372737528,3.2078,2705.7,2705.3,0.2234]
[1740372737929,3.2078,2705.7,2705.3,0.73925]
[1740372738131,3.2078,2705.7,2705.4,0.73923]
[1740372738632,3.2078,2705.7,2705.3,3.2078]
[1740372738633,3.2078,2705.7,2705.3,3.95259638]
[1740372738834,3.2078,2705.7,2705.3,3.21333638]
[1740372739831,0.56133638,2705.8,2705.3,3.21333638]
[1740372740135,3.2078,2706.3,2705.6,3.2078]
[1740372740337,2.828,2706.5,2705.6,3.2078]
[1740372740538,6.0358,2706.6,2705.9,3.2078]
[1740372740738,3.2078,2706.2,2705.6,0.73918]
[1740372741041,3.2078,2706.2,2705.7,3.2078]
[1740372741335,3.21333638,2706.2,2705.9,0.7391]
[1740372741641,3.21333638,2706.2,2705.7,3.94695]
[1740372741937,3.21333638,2706.2,2705.5,0.583]
[1740372742134,0.00553638,2706.2,2706.1,0.73905]
[1740372742934,3.7778,2706.8,2706.1,2.829]
[1740372743231,3.7778,2706.8,2706.4,0.73897]
[1740372743431,3.7778,2706.8,2706.2,1.29001]
[1740372743631,3.7778,2706.8,2706.2,0.551]
[1740372744036,3.7778,2706.8,2706.3,0.73899]
[1740372744238,3.78333638,2706.8,2706.3,0.73899]
[1740372744432,3.78333638,2706.8,2706.3,3.94679]
[1740372744827,3.78333638,2706.8,2706.3,3.2078]
[1740372745033,0.00553638,2706.8,2706.7,0.73889]
[1740372745230,5.7978783,2709.1,2706.6,3.2078]
[1740372745231,3.2078,2707.5,2706.6,6.0368]
[1740372745438,3.2078,2707.6,2707.0,0.73879]
[1740372745640,3.2078,2707.6,2706.7,3.2078]
[1740372745836,3.2078,2707.6,2707.0,0.73881]
[1740372746037,3.2078,2707.6,2707.0,0.7388]
[1740372746339,3.2078,2707.6,2707.1,0.73878]
[1740372746534,3.21333638,2707.6,2707.1,0.73878]
[1740372746734,3.21333638,2707.6,2707.0,0.00553638]
[1740372746933,0.00553638,2707.6,2707.5,0.73867]
[1740372747338,2.828,2708.3,2708.0,0.73852]
[1740372747640,3.2078,2708.4,2707.8,3.2078]
[1740372747831,0.5912,2708.5,2708.4,0.73842]
[1740372748032,0.5912,2708.5,2707.8,3.2078]
[1740372748033,3.2078,2708.8,2707.9,0.73856]
[1740372748242,3.2078,2708.5,2707.8,3.2078]
[1740372748436,3.2078,2708.5,2707.9,0.73853]
[1740372748743,0.00553638,2708.4,2707.8,3.2078]
[1740372749038,0.00553638,2708.4,2707.3,3.2078]
[1740372749039,3.2078,2708.2,2707.3,3.2078]
[1740372749239,3.2078,2707.9,2707.2,1.1279]
[1740372749445,3.2078,2707.9,2707.3,0.73872]
[1740372749639,3.2078,2707.9,2707.2,1.1279]
[1740372749846,3.2078,2707.9,2707.3,3.2078]
[1740372750031,3.2078,2707.9,2707.4,0.73868]
[1740372750231,3.2078,2707.9,2707.3,3.2078]
[1740372750433,3.2078,2707.9,2707.3,3.94652]
[1740372750736,3.2078,2707.9,2707.3,3.2078]
[1740372750933,3.2078,2707.9,2707.6,0.73862]
[1740372751242,3.2078,2707.9,2707.3,3.2078]
[1740372751441,3.2078,2707.9,2707.6,0.73863]
[1740372751645,3.2078,2707.9,2707.4,0.73869]
[1740372751940,3.2078,2707.9,2707.3,3.56571]
[1740372752139,3.2078,2707.9,2707.3,2.827]
[1740372752537,3.2078,2707.9,2707.3,3.5657]
[1740372752741,3.2078,2707.9,2707.3,2.827]
[1740372753038,3.2078,2707.9,2707.5,0.73867]
[1740372753244,3.2078,2707.9,2707.3,6.77351]
[1740372753545,3.2078,2707.9,2707.2,4.69364]
[1740372753740,3.2078,2707.6,2707.2,4.69364]
[1740372754438,3.2078,2707.6,2707.2,3.9549]
[1740372754645,3.2078,2707.9,2707.2,3.9549]
[1740372755039,3.2078,2707.9,2707.3,0.73872]
[1740372755443,3.2078,2707.9,2707.2,4.69363]
[1740372755837,3.2078,2707.9,2707.3,0.73872]
[1740372756742,3.2078,2707.9,2707.5,0.73866]
[1740372757141,3.2078,2707.9,2707.3,6.1618]
[1740372757142,3.2078,2707.9,2707.4,0.73868]
[1740372757441,3.2078,2708.2,2707.3,6.1618]
[1740372757641,3.2078,2708.2,2707.3,3.2078]
[1740372757846,3.2078,2708.2,2707.6,0.73862]
[1740372758348,3.2078,2708.2,2707.4,1.84675]
[1740372758547,3.2078,2708.2,2707.9,0.73855]
[1740372758743,3.2078,2708.2,2707.8,0.73857]
[1740372758947,3.2078,2708.2,2707.9,0.73854]
[1740372759144,3.2078,2708.2,2707.6,3.2078]
[1740372759547,0.00553638,2708.4,2707.6,3.2078]
[1740372759749,0.00553638,2708.4,2708.0,0.73852]
[1740372760340,0.00553638,2708.4,2707.7,2.826]
[1740372760651,3.2078,2708.2,2707.5,0.6038]
[1740372760838,3.2078,2708.2,2707.6,2.826]
[1740372761044,0.00553638,2708.4,2707.7,0.7386]
[1740372761346,3.2078,2707.9,2707.2,1.86663]
[1740372761539,0.5912,2707.8,2707.2,1.86663]
[1740372762240,0.5912,2707.8,2707.3,0.73872]
[1740372762447,0.5912,2707.8,2707.4,0.73869]
[1740372762648,0.5912,2707.8,2707.5,0.73865]
[1740372762848,0.5912,2707.8,2707.2,1.1279]
[1740372763043,0.5912,2707.8,2707.4,0.73868]
[1740372763443,0.5912,2707.8,2707.3,0.73871]
[1740372763850,0.5912,2707.8,2707.4,0.73869]
[1740372764153,0.5912,2707.8,2707.2,1.1279]
[1740372764352,0.5912,2707.8,2707.4,0.73869]
[1740372764860,0.5912,2707.8,2707.2,1.1279]
[1740372765062,0.5912,2707.8,2707.3,0.73872]
[1740372765561,0.5912,2707.8,2707.4,0.73869]
[1740372766062,0.5912,2707.8,2707.5,0.73865]
[1740372766259,0.5912,2707.8,2707.3,2.954]
[1740372766759,0.5912,2707.8,2707.5,0.73865]
[1740372766959,0.5912,2707.8,2707.3,2.954]
[1740372767855,0.5912,2707.8,2707.6,0.00318958]
[1740372770157,3.4162,2707.8,2707.6,0.00318958]
[1740372770664,0.0609105,2707.7,2706.7,2.954]
[1740372770961,3.2078,2706.9,2706.7,2.954]
[1740372771155,3.2078,2706.9,2706.4,3.2078]
[1740372771351,3.2078,2706.6,2706.2,0.6037]
[1740372771556,3.2078,2706.6,2706.1,1.1469]
[1740372771557,3.2078,2706.6,2706.1,0.00553638]
[1740372771955,3.2078,2706.3,2706.1,0.00553638]
[1740372774561,3.2078,2706.3,2706.2,0.73902]
[1740372774760,2.825,2706.5,2706.1,0.00553638]
[1740372775370,2.825,2706.5,2706.1,0.56053638]
[1740372775659,3.2078,2706.6,2706.1,0.56053638]
[1740372775860,3.2078,2706.6,2706.3,0.73898]
[1740372776068,3.2078,2706.6,2706.2,1.32441]
[1740372776270,3.2078,2706.6,2706.2,0.5854]
[1740372776861,0.00553638,2706.7,2706.2,0.5854]
[1740372777073,0.00553638,2706.7,2706.6,0.73891]
[1740372777360,3.2078,2707.2,2706.6,3.2078]
[1740372777665,3.2078,2707.2,2706.7,0.73887]
[1740372777864,3.2078,2707.2,2706.6,3.2078]
[1740372778067,3.2078,2707.2,2706.5,3.56392]
[1740372778265,3.2078,2707.2,2706.4,2.825]
[1740372778460,0.00553638,2707.1,2706.4,2.825]
[1740372778656,0.00553638,2707.1,2706.7,0.73889]
[1740372779056,0.00553638,2707.1,2706.4,2.825]
[1740372779263,0.00553638,2707.1,2706.6,0.73889]
[1740372780062,0.00553638,2707.1,2706.4,2.825]
[1740372780663,0.00553638,2707.1,2706.7,0.73888]
[1740372780864,0.00553638,2707.1,2706.6,0.7389]
[1740372781270,0.00553638,2707.1,2706.9,0.73882]
[1740372781569,0.00553638,2707.1,2706.6,3.2078]
[1740372781768,0.00553638,2707.1,2706.8,0.73885]
[1740372782362,0.00553638,2707.1,2706.9,0.564]
[1740372784065,0.00553638,2707.1,2706.3,0.594]
[1740372784370,3.2078,2706.9,2706.1,0.56053638]
[1740372784578,3.2078,2706.4,2706.1,0.00553638]
[1740372785163,0.6063,2706.3,2706.1,0.00553638]
[1740372786170,6.6063,2706.3,2706.1,0.00553638]
[1740372786371,0.6063,2706.3,2705.3,0.73926]
[1740372786575,3.2078,2705.8,2705.2,3.7956]
[1740372787377,3.2078,2705.8,2705.2,3.80113638]
[1740372788974,3.2078,2705.8,2705.4,0.73923]
[1740372789181,3.2078,2705.8,2705.2,3.80113638]
[1740372790374,3.2078,2705.5,2705.2,0.59333638]
[1740372790879,0.00553638,2705.6,2705.2,0.59333638]
[1740372794278,0.00553638,2705.6,2705.2,1.33263638]
[1740372794478,0.00553638,2705.6,2705.2,0.59333638]
[1740372795785,0.00553638,2705.6,2705.2,1.33263638]
[1740372797180,0.00553638,2705.6,2705.2,0.59333638]
[1740372798582,0.00553638,2705.6,2705.3,0.73927]
[1740372799080,0.00553638,2705.6,2705.1,0.595]
[1740372799081,0.00553638,2705.6,2705.0,3.2078]
[1740372799283,0.27599653,2703.9,2702.8,1.35872564]
[1740372799478,0.27599653,2703.9,2703.3,1.1935]
[1740372799684,3.2078,2703.4,2703.3,1.1935]